fUSD/lending_fUSD_20240508
["ID","MTS","AMOUNT","RATE_DAILY","PERIOD"]
[326640758,1715183446049,-4000.0,0.00021918,3]
[326640759,1715183446058,-250.0,0.00021918,2]
[326640760,1715183446067,-395.668509,0.00021918,2]
[326640761,1715183446077,-151.46,0.0002197,2]
[326640762,1715183446088,-151.46,0.0002197,2]
[326640763,1715183446097,-129384.51288723,0.0002198,2]
[326640901,1715184633283,-155.0,0.00012858,2]
[326640904,1715184633293,-267.9305041,0.00012858,2]
[326640905,1715184633303,-343.95475102,0.00012859,2]
[326640907,1715184633314,-788.48029707,0.00012859,2]
[326640909,1715184633324,-1075.76736712,0.00012898,2]
[326640911,1715184633333,-1000.0,0.00013698,2]
[326640913,1715184633343,-175.78,0.00016038,2]
[326640915,1715184633352,-3393.0,0.000162,2]
[326640917,1715184633362,-809.0,0.000162,2]
[326640919,1715184633371,-2544.85572424,0.00016485,2]
[326640921,1715184633380,-547.55323561,0.00017584,2]
[326640924,1715184633390,-1050.0,0.00018,3]
[326640926,1715184633400,-155.61811039,0.00018371,2]
[326640929,1715184633409,-203.43915863,0.00018548,2]
[326640931,1715184633419,-500.0,0.00018798,2]
[326640933,1715184633428,-167.57033928,0.00018993,2]
[326640935,1715184633437,-5000.0,0.00019,2]
[326640937,1715184633447,-1000.0,0.0001903,2]
[326640938,1715184633457,-1151.1,0.0001908,2]
[326640940,1715184633466,-157.74,0.00019178,2]
[326640942,1715184633475,-308.31,0.00019178,2]
[326640944,1715184633485,-1000.0,0.00019189,2]
[326640946,1715184633499,-166.61,0.0001925,2]
[326640948,1715184633509,-320.0,0.00019312,2]
[326640950,1715184633519,-156.14,0.00019391,2]
[326640952,1715184633528,-491.57,0.00019684,2]
[326640954,1715184633538,-200.0,0.00019704,2]
[326640956,1715184633547,-4186.809,0.00019834,2]
[326640958,1715184633557,-1100.0,0.0002,3]
[326640959,1715184633566,-861.15298336,0.0002,2]
[326640962,1715184633578,-155.0,0.0002,2]
[326640963,1715184633587,-173.76,0.00020065,2]
[326640965,1715184633596,-150.0,0.00020614,3]
[326640967,1715184633606,-203.43915863,0.0002085,2]
[326640969,1715184633616,-156.09725218,0.00021057,2]
[326640971,1715184633625,-1000.0,0.00021408,2]
[326640973,1715184633635,-193.06,0.00021589,15]
[326640975,1715184633644,-595.68497193,0.0002168,2]
[326640977,1715184633653,-595.68497192,0.00021704,2]
[326640979,1715184633663,-320.0,0.00021726,2]
[326640981,1715184633672,-595.68497192,0.00021729,2]
[326640983,1715184633681,-595.68497192,0.00021753,2]
[326640985,1715184633691,-6305.28577133,0.00021758,2]
[326640987,1715184633700,-165.31,0.0002177,2]
[326640989,1715184633709,-286.71,0.0002177,3]
[326640991,1715184633718,-860.13,0.0002177,3]
[326640992,1715184633727,-595.68497192,0.00021778,2]
[326640994,1715184633736,-2322.9447,0.0002178,2]
[326640996,1715184633746,-2132.9774,0.0002178,2]
[326640998,1715184633755,-10184.7032,0.0002178,2]
[326641000,1715184633764,-207872.4881,0.0002178,2]
[326641002,1715184633773,-1000.0,0.0002178,2]
[326641004,1715184633783,-6754.5911,0.0002178,2]
[326641006,1715184633793,-987.22206149,0.00021789,2]
[326641008,1715184633802,-155.86367398,0.000218,2]
[326641010,1715184633812,-143697.81227534,0.000218,2]
[326641012,1715184633821,-595.68497192,0.00021802,2]
[326641014,1715184633830,-155.86367398,0.0002182,2]
[326641016,1715184633840,-200.0,0.00021824,2]
[326641018,1715184633849,-1000.0,0.00021824,2]
[326641020,1715184633858,-595.68497192,0.00021827,2]
[326641022,1715184633872,-155.86367398,0.0002184,2]
[326641024,1715184633881,-595.68497192,0.00021851,2]
[326641026,1715184633891,-155.86367398,0.0002186,2]
[326641028,1715184633901,-595.68497192,0.00021876,2]
[326641030,1715184633911,-279.72435897,0.00021879,2]
[326641032,1715184633921,-1299.02376925,0.00021879,2]
[326641034,1715184633930,-3672.8292,0.0002188,2]
[326641036,1715184633942,-278.92060217,0.0002188,2]
[326641037,1715184633952,-171.44839951,0.0002188,2]
[326641039,1715184633962,-425.25601005,0.0002188,2]
[326641041,1715184633971,-155.86367398,0.0002188,2]
[326641043,1715184633980,-157.25961073,0.0002188,2]
[326641045,1715184633991,-170.77773329,0.0002188,2]
[326641047,1715184634001,-10853.74980959,0.0002188,2]
[326641049,1715184634011,-425.25600998,0.00021882,2]
[326641051,1715184634021,-157.25961069,0.00021883,2]
[326641053,1715184634034,-425.25600998,0.00021884,2]
[326641055,1715184634045,-425.25600998,0.00021885,2]
[326641057,1715184634054,-157.25961069,0.00021887,2]
[326641059,1715184634064,-425.25600998,0.00021887,2]
[326641061,1715184634074,-425.25600998,0.00021889,2]
[326641063,1715184634083,-157.25961069,0.0002189,2]
[326641065,1715184634092,-1032.36996885,0.0002189,2]
[326641067,1715184634101,-10853.74980957,0.0002189,2]
[326641069,1715184634111,-425.25600998,0.00021891,2]
[326641071,1715184634120,-425.25600998,0.00021893,2]
[326641073,1715184634129,-157.25961069,0.00021893,2]
[326641075,1715184634139,-425.25600998,0.00021895,2]
[326641077,1715184634149,-425.25600998,0.00021896,2]
[326641079,1715184634158,-157.25961069,0.00021897,2]
[326641080,1715184634168,-425.25600998,0.00021898,2]
[326641081,1715184634177,-1250.0,0.000219,2]
[326641082,1715184634186,-425.25600998,0.000219,2]
[326641083,1715184634197,-155.86367398,0.000219,2]
[326641084,1715184634207,-157.25961069,0.000219,2]
[326641085,1715184634216,-1032.36996885,0.000219,2]
[326641086,1715184634225,-10853.74980957,0.000219,2]
[326641087,1715184634234,-595.68497192,0.000219,2]
[326641088,1715184634246,-2471.69,0.00021917,2]
[326641089,1715184634255,-250.0,0.00021918,2]
[326641090,1715184634264,-250.0,0.00021918,2]
[326641091,1715184634273,-356.101658,0.00021918,2]
[326641092,1715184634283,-800.0,0.00021945,2]
[326641093,1715184634293,-171.28,0.00021952,2]
[326641105,1715184634393,-165.31,0.0002197,2]
[326641107,1715184634402,-165.31,0.0002197,2]
[326641108,1715184634412,-165.31,0.0002197,2]
[326641109,1715184634421,-165.31,0.0002197,2]
[326641110,1715184634430,-153.21,0.0002197,2]
[326641111,1715184634440,-800.0,0.00021973,2]
[326641112,1715184634449,-800.0,0.00021973,2]
[326641113,1715184634459,-500.0,0.00021977,2]
[326641114,1715184634468,-223.62795639,0.00021977,2]
[326641115,1715184634477,-2250.89391064,0.00021978,2]
[326641116,1715184634488,-311.73649043,0.00021978,2]
[326641117,1715184634498,-201.16744693,0.00021978,2]
[326641118,1715184634507,-523.47247771,0.00021978,2]
[326641119,1715184634517,-7505.26883546,0.00021978,2]
[326641120,1715184634527,-1880.20024649,0.00021978,5]
[326641121,1715184634536,-155.96691017,0.00021978,2]
[326641122,1715184634546,-2272.61317681,0.00021978,2]
[326641123,1715184634556,-577.36339637,0.00021978,2]
[326641124,1715184634565,-250.93019258,0.00021978,2]
[326641125,1715184634575,-156.34895342,0.00021978,2]
[326641126,1715184634584,-155.21281844,0.00021978,2]
[326641127,1715184634593,-378.51268957,0.00021978,2]
[326641128,1715184634603,-2189.03026665,0.00021978,2]
[326641129,1715184634611,-238.37954066,0.00021978,2]
[326641130,1715184634621,-306.71178674,0.00021978,2]
[326641131,1715184634630,-767.8903537,0.00021978,2]
[326641132,1715184634644,-155.41258833,0.00021978,2]
[326641133,1715184634654,-168.62158287,0.00021978,2]
[326641134,1715184634664,-155.21536814,0.00021978,2]
[326641135,1715184634673,-106378.3181303,0.00021978,2]
[326641136,1715184634687,-291.44373864,0.00021978,2]
[326641165,1715184641890,-1138.18072319,0.00021978,2]
[326641166,1715184641902,-1284.37811025,0.00021978,2]
[326641168,1715184641915,-8627.52192602,0.00021978,2]
[326641176,1715184645530,-158.05804344,0.00021977,2]
[326641178,1715184645540,-864.06921985,0.00021977,2]
[326641180,1715184645550,-411.53017881,0.00021977,2]
[326641181,1715184645560,-64838.76460696,0.00021978,2]
[326641182,1715184645569,-500.0,0.00021979,2]
[326641183,1715184645579,-419.83351918,0.00021979,2]
[326641184,1715184645589,-532.66327888,0.00021979,2]
[326641185,1715184645598,-500.0,0.00021979,2]
[326641187,1715184645608,-607.27322949,0.00021979,2]
[326641189,1715184645617,-2471.69,0.00021979,2]
[326641190,1715184645626,-2471.69,0.00021979,2]
[326641191,1715184645636,-2471.69,0.00021979,2]
[326641192,1715184645645,-2471.69,0.00021979,2]
[326641193,1715184645655,-2471.69,0.00021979,2]
[326641194,1715184645664,-2471.69,0.00021979,2]
[326641195,1715184645673,-2471.69,0.00021979,2]
[326641196,1715184645683,-2471.69,0.00021979,2]
[326641197,1715184645692,-2471.69,0.00021979,2]
[326641198,1715184645701,-84518.46249411,0.0002198,7]
[326641199,1715184645711,-158013.3578922,0.0002198,2]
[326641200,1715184645722,-709.29485334,0.0002198,2]
[326641210,1715184660576,-303.51602369,0.0002188,2]
[326641211,1715184660586,-250.0,0.00021918,2]
[326641212,1715184660596,-268.43805424,0.00021977,2]
[326641213,1715184660605,-155.0,0.00021977,2]
[326641214,1715184660616,-673.99571857,0.00021979,2]
[326641215,1715184660629,-4105.93614657,0.00021979,2]
[326641216,1715184660641,-220.06813486,0.00021979,2]
[326641217,1715184660651,-310.64186882,0.00021979,2]
[326641243,1715185769121,-661.0,0.0001616,2]
[326641244,1715185769802,-3254.0,0.000163,2]
[326641245,1715185769826,-2544.85572424,0.00016484,2]
[326641246,1715185769848,-158.41549323,0.00017608,2]
[326641247,1715185769872,-167.57033928,0.00017939,2]
[326641248,1715185769895,-1050.0,0.00018,3]
[326641249,1715185769924,-155.6181104,0.00018963,2]
[326641250,1715185769949,-2008.54033285,0.00019,2]
[326641251,1715185771711,-2991.45966715,0.00019,2]
[326641252,1715185771737,-170.56,0.00019178,2]
[326641253,1715185771762,-164.61,0.00019178,2]
[326641254,1715185771786,-156.9692701,0.00019545,2]
[326641255,1715185771810,-1100.0,0.0002,3]
[326641256,1715185771834,-600.0,0.00020137,2]
[326641257,1715185771860,-272.0,0.0002022,2]
[326641258,1715185771886,-173.76,0.00020309,2]
[326641259,1715185771913,-163.92978335,0.00020322,2]
[326641260,1715185771938,-151.07,0.00020483,2]
[326641261,1715185771964,-166.61,0.00020903,2]
[326641262,1715185771989,-176.97,0.00021589,15]
[326641263,1715185772011,-200.0,0.00021804,2]
[326641264,1715185772034,-1000.0,0.00021804,2]
[326641265,1715185772055,-1000.0,0.00021808,2]
[326641266,1715185772079,-200.0,0.00021809,2]
[326641267,1715185772101,-1000.0,0.00021811,2]
[326641268,1715185772123,-200.0,0.00021811,2]
[326641269,1715185772146,-112.0612794,0.00021814,2]
[326641271,1715185774977,-87.9387206,0.00021814,2]
[326641273,1715185775148,-1000.0,0.00021814,2]
[326641274,1715185775644,-200.0,0.00021814,2]
[326641275,1715185776148,-1000.0,0.00021817,2]
[326641276,1715185777231,-200.0,0.00021819,2]
[326641277,1715185777767,-1000.0,0.0002182,2]
[326641278,1715185778354,-500.0,0.0002182,2]
[326641279,1715185778896,-200.0,0.00021823,2]
[326641280,1715185779434,-1000.0,0.00021823,2]
[326641281,1715185780650,-200.0,0.00021823,2]
[326641282,1715185781235,-500.0,0.00021823,2]
[326641283,1715185782144,-200.0,0.00021823,2]
[326641284,1715185783403,-155.86367402,0.00021879,2]
[326641285,1715185783427,-500.0,0.00021891,2]
[326641286,1715185783449,-383.65977764,0.000219,2]
[326641287,1715185783471,-500.0,0.000219,2]
[326641288,1715185783495,-1032.36996886,0.000219,2]
[326641289,1715185783521,-411.33903766,0.000219,2]
[326641290,1715185783544,-500.0,0.00021917,2]
[326641291,1715185783567,-250.0,0.00021918,2]
[326641292,1715185783589,-178.82882122,0.00021918,3]
[326641293,1715185784283,-773.52117878,0.00021918,3]
[326641294,1715185784306,-250.0,0.00021918,2]
[326641295,1715185784330,-320.491492,0.00021918,2]
[326641296,1715185784352,-573.42,0.00021969,3]
[326641297,1715185784376,-860.33884772,0.00021978,2]
[326641298,1715185784398,-221.57928681,0.00021978,2]
[326641299,1715185784420,-155.38559833,0.00021978,2]
[326641300,1715185784442,-250.57929335,0.00021978,2]
[326641301,1715185784466,-5443.28980792,0.00021978,2]
[326641302,1715185784489,-1151.39449509,0.00021978,2]
[326641303,1715185788633,-290.42550491,0.00021978,2]
[326641304,1715185789365,-586.94146838,0.00021979,2]
[326641305,1715185790504,-7505.26883546,0.00021979,2]
[326641306,1715185791128,-1617.36419125,0.00021979,2]
[326641308,1715185795231,-2544.85572424,0.00016484,2]
[326641309,1715185795258,-5000.0,0.00021978,2]
[326641310,1715185795281,-597.74924536,0.00021979,2]
[326641311,1715185795305,-293.68275383,0.00021979,2]
[326641312,1715185795329,-1563.71227657,0.00021979,2]
[326641313,1715185799138,-500.0,0.00021882,2]
[326641314,1715185800220,-9500.0,0.00021979,2]
[326641315,1715185806697,-10000.0,0.00021979,2]
[326641316,1715185809129,-1849.51578682,0.00021978,2]
[326641317,1715185809154,-8150.48421318,0.00021979,2]
[326641318,1715185835638,-1050.0,0.00016484,2]
[326641319,1715185835652,-450.0,0.00016484,2]
[326641321,1715185835665,-1044.85572424,0.00016484,2]
[326641323,1715185835676,-288.442343,0.00021918,2]
[326641325,1715185835686,-1000.0,0.00021978,2]
[326641327,1715185835696,-2323.03483276,0.00021979,2]
[326641391,1715185846461,-500.0,0.00021874,2]
[326641392,1715185846471,-161.47184836,0.00021979,2]
[326641393,1715185846491,-309.17034663,0.00021979,2]
[326641394,1715185846507,-290.70242796,0.00021979,2]
[326641395,1715185846519,-62509.15946454,0.00021979,2]
[326641397,1715185847905,-287.5495,0.00016484,2]
[326641400,1715185847918,-2257.30622424,0.00016484,2]
[326641403,1715185847929,-2757.69377576,0.00021979,2]
[326641405,1715185847946,-1077.71805683,0.00021979,2]
[326641407,1715185847959,-1464.85383896,0.00021979,2]
[326641445,1715185870363,-363.18198052,0.00021979,2]
[326641446,1715185870376,-3188.65,0.00021979,2]
[326641457,1715186385174,-155.0,0.00012969,2]
[326641458,1715186386475,-409.16215093,0.00012969,2]
[326641459,1715186387871,-707.7619916,0.0001297,2]
[326641460,1715186391160,-155.0,0.00012971,2]
[326641461,1715186392871,-326.32137656,0.00012972,2]
[326641462,1715186394312,-548.75448091,0.00012972,2]
[326641463,1715186402678,-233.25407331,0.00012972,2]
[326641464,1715186404849,-155.0,0.00012973,2]
[326641465,1715186404902,-1611.74592669,0.00012973,2]
[326641501,1715187036728,-7512.64945463,9.728e-05,2]
[326641506,1715187036750,-528.22593873,9.729e-05,2]
[326641511,1715187036768,-2544.85572424,9.73e-05,2]
[326641514,1715187036781,-340.41386807,0.000129,2]
[326641517,1715187036795,-308.76784164,0.000129,2]
[326641522,1715187036812,-155.0,0.00012971,2]
[326641526,1715187036827,-150.0,0.00012972,2]
[326641531,1715187036846,-135043.97107935,0.00012973,2]
[326641535,1715187036861,-6161.832,0.00012973,2]
[326641537,1715187036873,-157.47,0.0001299,2]
[326641539,1715187036888,-1632.1028026,0.00012998,2]
[326641542,1715187036904,-531.34817367,0.00012999,2]
[326641544,1715187036918,-324.10188578,0.00012999,2]
[326641546,1715187036932,-155.0,0.00012999,2]
[326641548,1715187036944,-191.34158492,0.00012999,2]
[326641549,1715187036960,-410.39967011,0.00012999,2]
[326641550,1715187036973,-603.88082928,0.00012999,2]
[326641551,1715187036987,-520.71583875,0.00012999,2]
[326641552,1715187037005,-346051.40193285,0.00013,2]
[326641553,1715187037029,-866.7628267,0.00013,2]
[326641608,1715187040948,-810.16228092,0.00013,2]
[326641635,1715187046605,-159.57152389,0.000129,2]
[326641641,1715187046615,-31067.92847611,0.00013,2]
[326641647,1715187046627,-571.92364445,0.00013,2]
[326641700,1715187047934,-336982.97488159,0.00013,2]
[326641701,1715187047943,-87188.76189893,0.00013,2]
[326641702,1715187047953,-186.48,0.0001504,2]
[326641703,1715187047962,-226.37,0.00015831,2]
[326641704,1715187047971,-167.39,0.00015831,2]
[326641705,1715187047981,-652.43271125,0.00016297,2]
[326641706,1715187047990,-1701.39738647,0.00016299,2]
[326641707,1715187047999,-841.0,0.000163,2]
[326641708,1715187048008,-3404.0,0.000163,2]
[326641709,1715187048018,-1225.84618609,0.000165,2]
[326641710,1715187048027,-163.92978336,0.00016731,2]
[326641711,1715187048038,-165.46804776,0.0001788,2]
[326641712,1715187048047,-165.46804776,0.0001788,2]
[326641713,1715187048056,-165.46804776,0.0001788,2]
[326641714,1715187048066,-1050.0,0.00018,3]
[326641715,1715187048075,-704.62,0.00018765,2]
[326641716,1715187048084,-250.0,0.00018907,2]
[326641717,1715187048093,-33838.19541985,0.00019,2]
[326641718,1715187048103,-234.8,0.00019011,2]
[326641719,1715187048112,-173.76,0.00019073,2]
[326641720,1715187048121,-599.28,0.00019144,2]
[326641721,1715187048131,-158.88,0.00019178,2]
[326641722,1715187048140,-292.89,0.00019178,2]
[326641723,1715187048149,-20550.6,0.00019229,2]
[326641724,1715187048159,-871.84,0.00019335,2]
[326641725,1715187048168,-154.87,0.00019444,2]
[326641726,1715187048177,-1132.8,0.00019467,2]
[326641727,1715187048187,-1132.8,0.00019472,2]
[326641728,1715187048196,-1132.8,0.00019478,2]
[326641729,1715187048205,-1132.8,0.00019483,2]
[326641730,1715187048214,-1132.8,0.00019488,2]
[326641731,1715187048224,-1132.8,0.00019493,2]
[326641732,1715187048233,-1132.8,0.00019498,2]
[326641733,1715187048242,-1132.8,0.00019503,2]
[326641734,1715187048251,-1132.8,0.00019508,2]
[326641735,1715187048263,-1132.8,0.00019513,2]
[326641736,1715187048273,-1132.8,0.00019519,2]
[326641737,1715187048283,-162.58,0.00019519,2]
[326641738,1715187048293,-1132.8,0.00019524,2]
[326641739,1715187048302,-170.06,0.00019525,2]
[326641740,1715187048312,-1132.8,0.00019529,2]
[326641741,1715187048321,-1132.8,0.00019534,2]
[326641742,1715187048332,-154.87,0.00019536,2]
[326641743,1715187048342,-1132.8,0.00019539,2]
[326641744,1715187048352,-1132.8,0.00019544,2]
[326641745,1715187048362,-1132.8,0.00019549,2]
[326641746,1715187048371,-1132.8,0.00019554,2]
[326641747,1715187048380,-1132.8,0.00019559,2]
[326641748,1715187048390,-1132.8,0.00019565,2]
[326641749,1715187048399,-163.22,0.00019612,2]
[326641750,1715187048408,-154.87,0.00019628,2]
[326641751,1715187048417,-165.46804776,0.0001965,2]
[326641752,1715187048426,-154.87,0.0001972,2]
[326641753,1715187048435,-154.87,0.00019812,2]
[326641754,1715187048445,-154.87,0.00019904,2]
[326641755,1715187048454,-154.87,0.00019996,2]
[326641756,1715187048464,-1100.0,0.0002,3]
[326641757,1715187048473,-154.87,0.00020088,2]
[326641758,1715187048482,-154.87,0.0002018,2]
[326641759,1715187048491,-154.87,0.00020273,2]
[326641760,1715187048500,-154.87,0.00020365,2]
[326641761,1715187048509,-154.87,0.00020457,2]
[326641762,1715187048519,-259.598109,0.00020548,2]
[326641763,1715187048528,-1045.88,0.00020603,2]
[326641764,1715187048537,-716.73138077,0.00021,2]
[326641765,1715187048546,-686.83182,0.00021,2]
[326641766,1715187048555,-868.14,0.00021041,2]
[326641767,1715187048564,-868.14,0.00021041,2]
[326641768,1715187048573,-414.79,0.00021041,2]
[326641769,1715187048583,-414.79,0.00021041,2]
[326641770,1715187048592,-868.14,0.00021041,2]
[326641771,1715187048602,-868.14,0.00021041,2]
[326641772,1715187048611,-414.79,0.00021041,2]
[326641773,1715187048620,-868.14,0.00021041,2]
[326641774,1715187048629,-414.79,0.00021041,2]
[326641775,1715187048638,-414.79,0.00021041,2]
[326641776,1715187048648,-868.14,0.00021041,2]
[326641777,1715187048658,-868.14,0.00021041,2]
[326641778,1715187048670,-414.79,0.00021041,2]
[326641779,1715187048679,-868.14,0.00021041,2]
[326641780,1715187048688,-150.0,0.00021178,2]
[326641781,1715187048697,-884.22,0.00021288,2]
[326641782,1715187048707,-913.38,0.00021288,2]
[326641783,1715187048716,-414.79,0.00021288,2]
[326641784,1715187048726,-912.46,0.00021288,2]
[326641785,1715187048736,-414.79,0.00021288,2]
[326641786,1715187048745,-912.46,0.00021288,2]
[326641787,1715187048755,-912.46,0.00021288,2]
[326641788,1715187048764,-414.79,0.00021288,2]
[326641789,1715187048775,-414.79,0.00021288,2]
[326641790,1715187048784,-414.79,0.00021288,2]
[326641791,1715187048793,-171.29,0.00021307,2]
[326641792,1715187048803,-259.598109,0.0002137,2]
[326641793,1715187048811,-300.0,0.00021425,2]
[326641794,1715187048822,-162.22,0.00021589,15]
[326641795,1715187048831,-500.0,0.00021654,2]
[326641796,1715187048841,-500.0,0.00021662,2]
[326641797,1715187048850,-500.0,0.00021671,2]
[326641798,1715187048859,-500.0,0.0002168,2]
[326641799,1715187048868,-500.0,0.00021689,2]
[326641800,1715187048878,-500.0,0.00021698,2]
[326641801,1715187048887,-500.0,0.00021706,2]
[326641802,1715187048897,-500.0,0.00021715,2]
[326641803,1715187048906,-500.0,0.00021724,2]
[326641804,1715187048915,-500.0,0.00021733,2]
[326641805,1715187048925,-500.0,0.00021742,2]
[326641806,1715187048935,-234.8,0.0002175,2]
[326641807,1715187048945,-500.0,0.0002175,2]
[326641808,1715187048955,-871.84,0.00021752,2]
[326641809,1715187048964,-500.0,0.00021759,2]
[326641810,1715187048974,-500.0,0.00021768,2]
[326641811,1715187048983,-500.0,0.00021777,2]
[326641812,1715187048992,-500.0,0.00021786,2]
[326641813,1715187049002,-500.0,0.00021794,2]
[326641814,1715187049011,-810.2660858,0.000218,2]
[326641815,1715187049021,-500.0,0.00021803,2]
[326641816,1715187049030,-500.0,0.00021804,2]
[326641817,1715187049039,-500.0,0.00021809,2]
[326641818,1715187049048,-200.0,0.00021811,2]
[326641819,1715187049057,-500.0,0.00021812,2]
[326641820,1715187049067,-200.0,0.00021814,2]
[326641821,1715187049076,-1000.0,0.00021814,2]
[326641822,1715187049085,-500.0,0.00021814,2]
[326641823,1715187049095,-200.0,0.00021814,2]
[326641824,1715187049104,-439.82367473,0.00021817,2]
[326641825,1715187049113,-500.0,0.00021819,2]
[326641826,1715187049123,-500.0,0.00021821,2]
[326641827,1715187049132,-500.0,0.00021823,2]
[326641828,1715187049142,-439.82367473,0.00021825,2]
[326641829,1715187049151,-500.0,0.0002183,2]
[326641830,1715187049160,-439.82367473,0.00021832,2]
[326641831,1715187049169,-500.0,0.00021838,2]
[326641832,1715187049179,-439.82367473,0.0002184,2]
[326641833,1715187049188,-439.82367473,0.00021847,2]
[326641834,1715187049198,-500.0,0.00021847,2]
[326641835,1715187049207,-439.82367473,0.00021855,2]
[326641836,1715187049215,-500.0,0.00021856,2]
[326641837,1715187049224,-439.82367473,0.00021862,2]
[326641838,1715187049234,-1561.26800831,0.00021864,2]
[326641839,1715187049243,-500.0,0.00021865,2]
[326641840,1715187049252,-439.82367473,0.0002187,2]
[326641841,1715187049261,-439.82367473,0.00021877,2]
[326641842,1715187049272,-300.0,0.00021879,2]
[326641843,1715187049281,-340.41386807,0.00021879,2]
[326641844,1715187049290,-1000.0,0.0002188,2]
[326641845,1715187049299,-264.2178,0.0002188,2]
[326641846,1715187049308,-3499.67939162,0.00021884,2]
[326641847,1715187049317,-439.82367473,0.00021885,2]
[326641848,1715187049326,-439.82367473,0.00021892,2]
[326641849,1715187049335,-6762.66945982,0.000219,2]
[326641850,1715187049345,-439.82367473,0.000219,2]
[326641851,1715187049354,-165.46804776,0.000219,2]
[326641852,1715187049363,-1250.0,0.000219,2]
[326641853,1715187049373,-1381.74,0.00021917,2]
[326641854,1715187049382,-1381.74,0.00021917,2]
[326641855,1715187049391,-1381.74,0.00021917,2]
[326641856,1715187049400,-250.0,0.00021918,2]
[326641857,1715187049410,-250.0,0.00021918,2]
[326641858,1715187049419,-1381.74,0.00021971,2]
[326641859,1715187049428,-16566.74119904,0.00021972,5]
[326641860,1715187049437,-1452.0,0.00021976,2]
[326641861,1715187049448,-155.0,0.00021977,2]
[326641862,1715187049457,-32000.0,0.00021977,2]
[326641863,1715187049467,-317.67550535,0.00021977,2]
[326641864,1715187049476,-5920.22977168,0.00021977,2]
[326641865,1715187049485,-155.0,0.00021977,2]
[326641866,1715187049494,-5000.0,0.00021977,2]
[326641867,1715187049503,-155.0,0.00021977,2]
[326641868,1715187049514,-887.86064167,0.00021977,2]
[326641869,1715187049524,-268.42048949,0.00021977,2]
[326641870,1715187049534,-2543.08381097,0.00021977,2]
[326641871,1715187049543,-341.96790398,0.00021977,2]
[326641872,1715187049553,-2502.18780576,0.00021977,2]
[326641873,1715187049563,-1211.30074394,0.00021977,2]
[326641874,1715187049572,-200.40599956,0.00021977,2]
[326641875,1715187049582,-2216.32339775,0.00021977,2]
[326641876,1715187049591,-377.0367828,0.00021977,2]
[326641877,1715187049601,-200.19191512,0.00021977,2]
[326641878,1715187049610,-3055.91272993,0.00021977,2]
[326641879,1715187049620,-239.00488858,0.00021977,2]
[326641880,1715187049633,-236.81343216,0.00021977,2]
[326641881,1715187049643,-200.1780701,0.00021977,2]
[326641882,1715187049652,-3168.93081439,0.00021978,2]
[326641886,1715187052559,-1151.45,0.00021917,2]
[326641888,1715187052569,-1092.13,0.00021917,2]
[326641942,1715188248019,-204.34387367,0.00014824,2]
[326641949,1715188248029,-498.04605781,0.00014825,2]
[326641953,1715188248049,-156.87,0.00014826,2]
[326641958,1715188248064,-162.58,0.00014826,2]
[326641964,1715188248077,-154.87,0.00014938,2]
[326641968,1715188248088,-154.87,0.00015327,2]
[326641971,1715188248097,-154.87,0.00015716,2]
[326641974,1715188248107,-2181.42002606,0.000164,2]
[326641977,1715188248119,-1062.57997394,0.000164,2]
[326641980,1715188248129,-472.36046882,0.000164,2]
[326641983,1715188248141,-326.63953118,0.000164,2]
[326641985,1715188248150,-93.79020641,0.00017566,2]
[326641988,1715188248162,-63.07979359,0.00017566,2]
[326641990,1715188248171,-393.39810856,0.00018,3]
[326641992,1715188248183,-656.60189144,0.00018,3]
[326641994,1715188248193,-170.56,0.00019178,2]
[326641996,1715188248202,-160.21680702,0.0002,14]
[326641997,1715188248212,-1100.0,0.0002,3]